Cogmind - Beta 13 @@@ ROGUE MODE // 2024.04.01 @ 00:20:46 Player: Toa of Guts Result: Destroyed by B-75 Beast with Magnetic Acceleration Cannon Performance ------------- Evolutions (4) 2000 Regions Visited (7) 1400 Robots Destroyed (48) 240 Value Destroyed (1231) 1231 Prototype IDs (4) 80 Alien Tech Used (0) 0 Bonus (0) 0 TOTAL SCORE: 4951 Bonus ------- None Cogmind --------- Core Integrity 0/850 Matter 290/300 Energy 112/290 System Corruption 1% Temperature Cool (1) Movement Flying (115) Ox1 Location -6/Lower Caves Parts ------- > --- POWER (2) -------- Improved Deuterium Engine > --- PROPULSION (5) --- Cesium-ion Thruster > --- UTILITY (6) ------ Advanced Targeting Computer > --- WEAPON (2) ------- (None) > --- INVENTORY (5) ---- Armored Leg Small Storage Unit Advanced Targeting Computer Kinecellerator Weapon Cycler Peak State ------------ > --- POWER ------------ Ion Engine F-cell Engine > --- PROPULSION ------- Carbon-fiber Leg Armored Leg Improved VSS Leg Gravmag Array > --- UTILITY ---------- Advanced Heat Sink Small Storage Unit Improved Trap Scanner Advanced Targeting Computer Transmission Jammer Hacking Suite > --- WEAPON ----------- Plasma Rifle > --- INVENTORY -------- Cesium-ion Thruster Improved Cooling System Small Storage Unit Weapon Cycler Thermic Laser [Rating: 57] Favorites ----------- Power Ion Engine Engine Ion Engine Propulsion Aluminum Leg Leg Aluminum Leg Hover Unit Gravmag Array Flight Unit Flight Unit Utility Small Storage Unit Device Sensor Array Storage Small Storage Unit Processor Signal Interpreter Hackware Hacking Suite Weapon Light Assault Rifle Energy Gun Medium Laser Ballistic Gun Light Assault Rifle Ballistic Cannon Light Cannon Launcher Improved Grenade Launcher Build | -11 -10 -9 -8 -7 -6 -6 -6 ------- Run | Yrd Mat Mat Mat Fac Fac Low Low Slots Evolved 8 | . . 2 2 2 2 . . Power 1 | . . . . . 1 . . Propulsion 3 | . . 1 1 1 . . . Utility 4 | . . 1 1 1 1 . . Weapon . | . . . . . . . . Parts Attached 113 | 6 5 6 41 12 36 6 1 Power 18 | 1 1 1 5 1 8 . 1 Engine 18 | 1 1 1 5 1 8 . 1 Core . | . . . . . . . . Reactor . | . . . . . . . . Propulsion 32 | 2 1 2 12 5 7 3 . Treads . | . . . . . . . . Leg 9 | 2 1 2 . . 3 1 . Wheel . | . . . . . . . . Hover 7 | . . . . 2 4 1 . Flight 16 | . . . 12 3 . 1 . Utility 26 | 1 2 1 10 3 8 1 . Device 15 | . 2 . 3 3 6 1 . Storage 5 | 1 . . 4 . . . . Processor 5 | . . 1 2 . 2 . . Hackware 1 | . . . 1 . . . . Protection . | . . . . . . . . Artifact . | . . . . . . . . Weapon 37 | 2 1 2 14 3 13 2 . Energy Gun 9 | 2 . 1 . . 4 2 . Energy Cannon . | . . . . . . . . Ballistic Gun 15 | . 1 1 10 1 2 . . Ballistic Cannon 9 | . . . 2 2 5 . . Launcher 4 | . . . 2 . 2 . . Special Weapon . | . . . . . . . . Impact Weapon . | . . . . . . . . Slashing Weapon . | . . . . . . . . Piercing Weapon . | . . . . . . . . Special Melee Weapon . | . . . . . . . . Unidentified Prototypes 4 | . . . 1 1 2 . . Parts Lost 44 | . 1 3 16 4 7 13 . Power 6 | . 1 . 1 1 1 2 . Propulsion 18 | . . 2 7 3 3 3 . Utility 10 | . . . 3 . 1 6 . Weapon 10 | . . 1 5 . 2 2 . Highest Loss Streak 13 | . 1 3 10 4 5 13 . To Critical Strikes . | . . . . . . . . Average Slot Usage (%) 77 | . 90 94 75 75 65 71 13 Engine 9 | . 12 11 8 6 9 11 . Leg 14 | . 28 28 7 . 2 17 . Hover 1 | . . . . 1 8 . . Flight 5 | . . . 16 26 1 . 6 Device 10 | . 5 11 5 7 12 17 . Storage 8 | . 14 11 9 7 6 5 . Processor 8 | . . 11 11 8 7 6 6 Hackware 2 | . . . 1 7 6 5 . Energy Gun 5 | . 22 3 3 . 3 5 . Ballistic Gun 7 | . 5 18 10 . 2 . . Ballistic Cannon 1 | . . . . 8 2 . . Naked Turns . | . . . . . . . . Heaviest Build 31 | 14 14 14 19 17 31 31 10 Greatest Support 46 | 20 20 30 25 22 46 46 5 Greatest Overweight (x) 5 | . . 1 3 . 5 2 1 Average Overweight (x) . | . . . . . . . . Largest Inventory Capacity 25 | 8 8 8 25 8 8 8 5 Average Capacity 7 | 7 8 8 8 8 8 7 5 Most Carried 8 | 6 8 8 8 8 8 8 5 Average Carried 6 | 3 7 7 7 7 6 6 4 Final Capacity 8 | 8 8 8 8 8 8 5 5 Final Carried 8 | 6 8 8 8 8 8 4 5 Class Distribution -------------------- 54% | Mutant 29% | Scavenger-Mutant 12% | Sprinter 3% | Scavenger-Sprinter Dominant Class ---------------- Mutant | -10/Materials Scavenger-Mutant | -9/Materials Scavenger-Mutant | -8/Materials Sprinter | -7/Factory Mutant | -6/Factory Mutant | -6/Lower Caves Mutant | -6/Lower Caves Resources | -11 -10 -9 -8 -7 -6 -6 -6 ----------- Run | Yrd Mat Mat Mat Fac Fac Low Low Matter Collected 1665 | 174 132 319 396 182 371 91 . Remotely . | . . . . . . . . Salvage Created 1467 | . 227 322 418 40 344 116 . Parts 90 | . 17 19 33 3 12 6 . Haulers Intercepted . | . . . . . . . . Recyclers Shooed 1 | . . 1 . . . . . Parts Field Recycled . | . . . . . . . . Retrieved Matter . | . . . . . . . . Parts Self-Destructed 7 | . . . . . . 7 . Prevented . | . . . . . . . . Kills | -11 -10 -9 -8 -7 -6 -6 -6 ------- Run | Yrd Mat Mat Mat Fac Fac Low Low Combat Hostiles Destroyed 45 | . 10 7 17 1 7 3 . Guns 39 | . 10 7 17 . 2 3 . Cannons 3 | . . . . 1 2 . . AOE 2 | . . . . . 2 . . Classes Destroyed 7 | . 4 1 1 . 1 . . Builder 1 | . 1 . . . . . . Recycler 1 | . . . 1 . . . . Watcher 1 | . 1 . . . . . . Swarmer 25 | . 9 . 14 . . 2 . Grunt 14 | . 1 5 2 . 6 . . Duelist 2 | . . . . . 1 1 . Sentry 4 | . . 2 1 1 . . . Best Kill Streak 7 | . 5 3 7 1 4 2 . Combat Bots Only 7 | . 4 3 7 1 4 2 . Max Kills in Single Turn 2 | . 2 1 1 1 2 1 . Gunslinging . | . . . . . . . . Exploded 2 | . . . . . 2 . . Melee . | . . . . . . . . Uniques/NPCs Destroyed . | . . . . . . . . Combat | -11 -10 -9 -8 -7 -6 -6 -6 -------- Run | Yrd Mat Mat Mat Fac Fac Low Low Hostile Shots Fired 603 | . 56 53 152 45 68 204 25 Missed 195 | . 12 14 34 13 22 85 15 Damage Taken 5090 | . 353 521 1286 241 994 1581 114 Core 1407 | . 53 117 332 29 233 534 109 Absorbed by Shields . | . . . . . . . . Core Remaining (%) 76 | 100 78 70 39 95 . . . Volleys Fired 193 | . 28 36 75 5 37 12 . Largest 2 | . 2 2 2 2 2 1 . Hottest 100 | . 100 70 73 70 75 85 . Shots Fired 322 | . 56 69 126 10 49 12 . Gun 293 | . 56 69 122 . 34 12 . Cannon 22 | . . . . 10 12 . . Launcher 7 | . . . 4 . 3 . . Special . | . . . . . . . . Kinetic 212 | . 6 64 105 10 27 . . Thermal 89 | . 50 5 17 . 5 12 . Explosive 7 | . . . 4 . 3 . . Electromagnetic 14 | . . . . . 14 . . Robot Hit Streak 13 | . 6 10 12 5 13 4 . Robot Miss Streak 6 | . 4 6 2 2 3 1 . Penetration Max . | . . . . . . . . Secondary Targets 3 | . 2 1 . . . . . Max Gunslinging Chain 1 | . 1 1 . . . . . Shots Hit Robots 201 | . 31 44 82 7 28 9 . Core Hits 90 | . 14 17 32 2 20 5 . Critical Kills . | . . . . . . . . Critical Parts Destroyed 2 | . . 1 1 . . . . Critical Strikes 8 | . 3 1 1 1 1 1 . Burn 4 | . 3 . . . . 1 . Destroy 2 | . . 1 1 . . . . Blast 2 | . . . . 1 1 . . Melee Attacks . | . . . . . . . . Impact . | . . . . . . . . Slashing . | . . . . . . . . Piercing . | . . . . . . . . Sneak Attacks . | . . . . . . . . Combat Hostiles . | . . . . . . . . Follow-up Attacks . | . . . . . . . . Damage Inflicted 3115 | . 412 358 1105 116 928 196 . Guns 2405 | . 412 358 1009 . 430 196 . Cannons 220 | . . . . 116 104 . . Explosions 490 | . . . 96 . 394 . . Melee . | . . . . . . . . Ramming . | . . . . . . . . Kinetic 1570 | . 36 333 857 116 228 . . Thermal 775 | . 376 25 152 . 26 196 . Explosive 490 | . . . 96 . 394 . . Electromagnetic 280 | . . . . . 280 . . Impact . | . . . . . . . . Slashing . | . . . . . . . . Piercing . | . . . . . . . . Highest Corruption 1 | . . . . . 1 1 1 Average Corruption 1 | . . . . . 1 1 1 Corruption Purged . | . . . . . . . . Corruption Blocked . | . . . . . . . . Effects 6 | . . . . . 3 3 . Message Errors 1 | . . . . . 1 . . Matter Fused 1 | . . . . . . 1 . Data Loss (minor) 1 | . . . . . 1 . . Data Loss (major) 3 | . . . . . 1 2 . Overload Shots . | . . . . . . . . Overflow Damage 5 | . . . . . 5 . . Projectiles . | . . . . . . . . Explosions 5 | . . . . . 5 . . Melee . | . . . . . . . . Knockbacks 1 | . . . . . 1 . . Impact . | . . . . . . . . Kinetic 1 | . . . . . 1 . . Secondary . | . . . . . . . . Self-Inflicted Damage 6 | . . . . . 6 . . Shots 1 | . . . . . 1 . . Rammed . | . . . . . . . . Targets Rammed . | . . . . . . . . Kicked . | . . . . . . . . Crushed . | . . . . . . . . Highest Temperature 312 | . 312 48 40 . 58 137 . Average Temperature 57 | . 110 11 13 . 18 71 . Received Heat Transfer 1413 | . 6 276 324 66 471 243 27 Effects 1 | . 1 . . . . . . Energy Bleed 1 | . 1 . . . . . . Siege Activations . | . . . . . . . . Robots Corrupted 1 | . . . . . 1 . . Combat Hostiles 1 | . . . . . 1 . . Parts Fried 1 | . . . . . 1 . . Impact Corruptions . | . . . . . . . . Robots Melted . | . . . . . . . . Combat Hostiles . | . . . . . . . . Parts Melted 2 | . 2 . . . . . . Heat Transferred 2500 | . 1332 74 444 . 50 600 . Parts Sabotaged . | . . . . . . . . Parts Stolen . | . . . . . . . . Parts Stripped . | . . . . . . . . Power Chain Reactions . | . . . . . . . . Alert | -11 -10 -9 -8 -7 -6 -6 -6 ------- Run | Yrd Mat Mat Mat Fac Fac Low Low Peak Influence 309 | . 287 265 309 153 193 . . Initial 138 | . . 120 67 138 70 . . Average 144 | . 185 170 147 140 103 . . Maximum Alert Level 1 | . 1 1 1 . . . . Low Security (%) 73 | 100 52 58 67 100 100 . . Level 1 26 | . 47 41 32 . . . . Level 2 . | . . . . . . . . Level 3 . | . . . . . . . . Level 4 . | . . . . . . . . Level 5 . | . . . . . . . . High Security . | . . . . . . . . Max Security . | . . . . . . . . Squads Dispatched 6 | . 1 2 1 . 2 . . Investigation 2 | . . 1 . . 1 . . Extermination 1 | . . . . . 1 . . Reinforcement 3 | . 1 1 1 . . . . Assault . | . . . . . . . . Garrison . | . . . . . . . . Intercept . | . . . . . . . . Searches Triggered . | . . . . . . . . Construction Impeded . | . . . . . . . . Haulers Reinforced . | . . . . . . . . Active Scanning Responses . | . . . . . . . . Cargo Convoy Interrupts . | . . . . . . . . Stealth | -11 -10 -9 -8 -7 -6 -6 -6 --------- Run | Yrd Mat Mat Mat Fac Fac Low Low Distress Signals 3 | . 1 2 . . . . . Communications Jammed . | . . . . . . . . Distress Signals . | . . . . . . . . Times Spotted 74 | . 14 11 26 1 9 8 5 Peak Tracking Total 8 | . 6 5 7 1 4 8 4 Tactical Retreats 7 | . 1 1 3 . . . 2 Traps | -11 -10 -9 -8 -7 -6 -6 -6 ------- Run | Yrd Mat Mat Mat Fac Fac Low Low Traps Triggered 3 | . . 1 . . 2 . . Indirectly . | . . . . . . . . Trap Hack Attempts . | . . . . . . . . Triggered . | . . . . . . . . Disarmed . | . . . . . . . . Reprogrammed . | . . . . . . . . Reused . | . . . . . . . . Traps Extracted . | . . . . . . . . Installed . | . . . . . . . . Triggered . | . . . . . . . . Machines | -11 -10 -9 -8 -7 -6 -6 -6 ---------- Run | Yrd Mat Mat Mat Fac Fac Low Low Machines Disabled 2 | . . . 2 . . . . Max in Single Turn 2 | . . . 2 . . . . Machines Repaired . | . . . . . . . . Machines Dismantled . | . . . . . . . . Machines Sabotaged . | . . . . . . . . Overloaded Fab Kills . | . . . . . . . . Hacking | -11 -10 -9 -8 -7 -6 -6 -6 --------- Run | Yrd Mat Mat Mat Fac Fac Low Low Machines Accessed 6 | . 1 1 2 1 1 . . Terminals 4 | . 1 1 2 . . . . Fabricators . | . . . . . . . . Repair Stations . | . . . . . . . . Recycling Units 1 | . . . . . 1 . . Scanalyzers . | . . . . . . . . Garrison Access 1 | . . . . 1 . . . Total Hacks 15 | . 2 1 5 1 6 . . Successful 15 | . 2 1 5 1 6 . . Failed . | . . . . . . . . Catastrophic . | . . . . . . . . Database Lockouts . | . . . . . . . . Manual . | . . . . . . . . Terminals 8 | . 2 1 5 . . . . Fabricators . | . . . . . . . . Repair Stations . | . . . . . . . . Recycling Units 6 | . . . . . 6 . . Scanalyzers . | . . . . . . . . Garrison Access 1 | . . . . 1 . . . Terminal Hacks 8 | . 2 1 5 . . . . Record 5 | . 2 1 2 . . . . Alert Level 1 | . . . 1 . . . . Dispatch Records 1 | . . . 1 . . . . Investigation Status 1 | . . . 1 . . . . Fabricator Hacks . | . . . . . . . . Repair Station Hacks . | . . . . . . . . Recycling Unit Hacks 6 | . . . . . 6 . . Recycle Component 1 | . . . . . 1 . . Process 1 | . . . . . 1 . . Report Inventory 2 | . . . . . 2 . . Retrieve Matter 2 | . . . . . 2 . . Scanalyzer . | . . . . . . . . Garrison Access Hacks 1 | . . . . 1 . . . Unlock Access 1 | . . . . 1 . . . Unauthorized Hacks . | . . . . . . . . Terminals . | . . . . . . . . Fabricators . | . . . . . . . . Repair Stations . | . . . . . . . . Recycling Units . | . . . . . . . . Scanalyzers . | . . . . . . . . Garrison Access . | . . . . . . . . Data Cores Recovered . | . . . . . . . . Used . | . . . . . . . . Hacking Detections 2 | . 1 . . . 1 . . Full Trace Events 1 | . . . . . 1 . . Feedback Events 1 | . . . . . 1 . . Corruption 1 | . . . . . 1 . . Feedback Blocked . | . . . . . . . . Robot Schematics Acquired . | . . . . . . . . Robots Built . | . . . . . . . . Authchips . | . . . . . . . . Time . | . . . . . . . . Total Robot Build Rating . | . . . . . . . . Part Schematics Acquired . | . . . . . . . . Parts Built . | . . . . . . . . Authchips . | . . . . . . . . Time . | . . . . . . . . Total Part Build Rating . | . . . . . . . . Parts Repaired . | . . . . . . . . Time . | . . . . . . . . Parts Recycled 1 | . . . . . 1 . . Recycled Matter 52 | . . . . . 52 . . Retrieved Matter 52 | . . . . . 52 . . Retrieved Components . | . . . . . . . . Parts Scanalyzed . | . . . . . . . . Part Schematics Acquired . | . . . . . . . . Parts Damaged . | . . . . . . . . Bothacking | -11 -10 -9 -8 -7 -6 -6 -6 ------------ Run | Yrd Mat Mat Mat Fac Fac Low Low Used RIF Installer . | . . . . . . . . Robots Hacked . | . . . . . . . . Non-combat . | . . . . . . . . Combat . | . . . . . . . . Robot Hacks Applied . | . . . . . . . . Relay Couplers Released . | . . . . . . . . Fabnet Peak Effective % . | . . . . . . . . Robots Rewired . | . . . . . . . . Allies Hacked . | . . . . . . . . Hacks Repelled . | . . . . . . . . Allies | -11 -10 -9 -8 -7 -6 -6 -6 -------- Run | Yrd Mat Mat Mat Fac Fac Low Low Total Allies . | . . . . . . . . Largest Group . | . . . . . . . . Highest-Rated Group . | . . . . . . . . Highest-Rated Ally . | . . . . . . . . Total Orders . | . . . . . . . . Ally Attacks . | . . . . . . . . Total Damage . | . . . . . . . . Kills . | . . . . . . . . Allies Corrupted . | . . . . . . . . Allies Melted . | . . . . . . . . Intel | -11 -10 -9 -8 -7 -6 -6 -6 ------- Run | Yrd Mat Mat Mat Fac Fac Low Low Robot Analysis Total . | . . . . . . . . Derelict Logs Recovered 2 | . . . . . . 2 . Drone Launches . | . . . . . . . . Drone Recoveries . | . . . . . . . . Exploration | -11 -10 -9 -8 -7 -6 -6 -6 ------------- Run | Yrd Mat Mat Mat Fac Fac Low Low Turns Passed 3315 | 65 363 710 720 174 608 584 91 Spaces Moved 3296 | 42 190 478 681 456 652 545 252 Core 6 | 4 . . . . 1 1 . Treads . | . . . . . . . . Legs 1299 | 38 190 478 64 . 63 466 . Wheels . | . . . . . . . . Hover 525 | . . . . . 519 6 . Flight 1466 | . . . 617 456 69 72 252 Fastest Speed 26 | 50 120 120 27 26 32 35 35 Average Speed 70 | 113 120 120 40 30 65 100 35 Slowest Speed 300 | 120 120 190 290 32 300 180 115 Overloaded Moves . | . . . . . . . . Propulsion Burnouts . | . . . . . . . . Robots Hopped . | . . . . . . . . Cave-ins Triggered . | . . . . . . . . Exploration Rate (%) 32 | 4 37 35 51 12 10 75 39 Regions Visited 7 Branch Regions 2 Pre-discovered Areas 2 | . . . . . . 2 . Known Exits Taken 2 | . . 1 1 . . . . Unknown Exits Taken 5 | 1 1 . . 1 1 1 . Scrap Searched 3 | . . . . . . 2 1 Spaces Dug . | . . . . . . . . Terrain Destroyed 60 | . . . 14 . 46 . . Melee . | . . . . . . . . Projectile 2 | . . . . . 2 . . AOE 58 | . . . 14 . 44 . . Terrain Rammed . | . . . . . . . . Walls Destroyed . | . . . . . . . . Machines Disabled . | . . . . . . . . Actions | -11 -10 -9 -8 -7 -6 -6 -6 --------- Run | Yrd Mat Mat Mat Fac Fac Low Low Total 3988 | 59 272 556 1010 485 781 571 254 Wait 276 | . 35 29 181 . 27 4 . Move 3289 | 41 189 477 680 455 651 544 252 Hop . | . . . . . . . . Pick Up 65 | 12 8 5 18 2 16 3 1 Fast Attach 24 | . 2 1 10 2 8 . 1 Attach 60 | 6 1 3 18 9 17 6 . Detach 19 | . . . 5 8 5 1 . Swap 29 | . 2 2 13 1 11 . . Drop 33 | . 7 3 10 3 9 1 . Fire 193 | . 28 36 75 5 37 12 . Melee . | . . . . . . . . Ram . | . . . . . . . . Kick . | . . . . . . . . Crush . | . . . . . . . . Escape Stasis . | . . . . . . . . Rewire . | . . . . . . . . Trap . | . . . . . . . . Miscellaneous . | . . . . . . . . Route ------- -11/Scrapyard -10/Materials -9/Materials -8/Materials -7/Factory (discovered 2 exits: *Fac / Gar) -6/Factory -6/Lower Caves -6/Lower Caves History --------- Turn | Location | Event 26 | -11/Scrapyard | Discovered new exit (range 15) 66 | -11/Scrapyard | Entered Materials 327 | -10/Materials | Build established: Mutant 389 | -10/Materials | Discovered new exit (range 16) 429 | -10/Materials | Entered another Materials area 429 | -9/Materials | Evolved 2 slots: Propulsion x1, Utility x1 739 | -9/Materials | Build established: Scavenger-Mutant 947 | -9/Materials | Discovered new exit (range 16) 1026 | -9/Materials | Lost 3 parts (2n1w) 1138 | -9/Materials | Identified exit to Materials 1139 | -9/Materials | Entered another Materials area 1139 | -8/Materials | Evolved 2 slots: Propulsion x1, Utility x1 1449 | -8/Materials | Destroyed 7 combat bots 1455 | -8/Materials | Lost 4 parts (1n1u2w) 1607 | -8/Materials | Core integrity fell below 50% 1642 | -8/Materials | Lost 10 parts (1p5n2u2w) 1847 | -8/Materials | Discovered new exit (range 13) 1855 | -8/Materials | Identified exit to Factory 1859 | -8/Materials | Entered Factory 1859 | -7/Factory | Evolved 2 slots: Propulsion x1, Utility x1 1882 | -7/Factory | Identified exit to Garrison 1968 | -7/Factory | Discovered new exit (range 13) 1975 | -7/Factory | Lost 4 parts (1p3n) 2033 | -7/Factory | Entered another Factory area 2033 | -6/Factory | Evolved 2 slots: Power x1, Utility x1 2056 | -6/Factory | Discovered new exit (range 8) 2353 | -6/Factory | Build established: Mutant 2374 | -6/Factory | Lost 5 parts (1p1n1u2w) 2641 | -6/Factory | Entered Lower Caves 2846 | -6/Lower Caves | Learned location of Extension (-4) 3108 | -6/Lower Caves | Attracted the attention of an 0b10 outpost 3123 | -6/Lower Caves | Attracted the attention of an 0b10 checkpoint 3155 | -6/Lower Caves | Core integrity fell below 50% 3192 | -6/Lower Caves | Core integrity fell below 20% 3219 | -6/Lower Caves | Encountered a Warlord checkpoint 3220 | -6/Lower Caves | Discovered new exit (range 15) 3225 | -6/Lower Caves | Entered another Lower Caves area 3227 | -6/Lower Caves | Attracted the attention of an 0b10 checkpoint 3229 | -6/Lower Caves | Lost 13 parts (2p3n6u2w) 3314 | -6/Lower Caves | Spotted B-75 Beast 3316 | -6/Lower Caves | Destroyed by B-75 Beast with Magnetic Acceleration Cannon Last Messages --------------- Sml. Storage Unit destroyed. Imp. Cooling System destroyed. Acquired derelict log, extracted data. World map confirmed: -4/Extension. Acquired 3 matter. 6T-S6A(M): "This area isn't safe." Acquired 1 matter. Acquired 5 matter. EXIT=FOUND Acquired 1 matter. S-27 Virus destroyed. LOCATION=UNKNOWN GOAL=ESCAPE Y-54 Guardian: "INTERCEPTING UNREGISTERED DERELICT." Searching scrap... Found Kinecellerator. Found 34 Matter. Acquired Kinecellerator. Acquired Imp. Deuterium Engine. Map ----- +----------------------------------------------------+ | ?????????????????????????????????????????????????? | | ?????????????????????????????????????????????????? | | ?????????????????????????????????????????????????? | | ?????????????????????????????????????????????????? | | ?????????????????????????????????????????????????? | | ?????????????????????????????????????????????????? | | ?????????????????????????????????????????????????? | | ?????????????????????????????????????????????????? | | ?????????????????????????????????????????????????? | | ?????????????????????????????????????????????????? | | ?????????????????????????????????????????????????? | | ????????????????????? ???????????????????????????? | | ??????????????????? BB???????????????????????????? | | ??????????????????? BB???????????????????????????? | | ???????????????????? ?????????????????????????? | | ???????????????????? ????????????????????????? | | ?????????????????#??? ????????????????????????? | | ????????????????# ?? ????????????????????????? | | ????????????????? ??? ??###???????????????????? | | ?????????????????# ?? ?? #???????????????????# | | ?????????????????# ??# #?? #??????????????????## | | ?????????????##### #?# ;## #?????????????????## | | ?????????????? ## ##????????????????# | | ????????????????? ##???????????????# | | ????????????????????# $ #????????????#### | | ????????????????????# @ ##### #??????# | | ????????????????????# % % #??????# | | ????????????????????# #???#### # | | ????????????????????# #######???# ## | | ????????????????????# % ##?????????## #? | | ????????????????????## ## ##????????##?## ## | | ?????????????????????# #? ##????###### #### # | | ???????????????????### ## #?????# ### | | ??????????????????## ####???##?# | | ?????????????????## ##??? ### | | ????????????????## ## #### ## | | ?????# ??????## #???## ##? | | ?????# ### #????# ###?? | | ?????# #### ###### ##???? | | ?????# #???# ## #????? | | ???????## ## #### ##??# ### #????? | | ????????????#####?# ### ##?# ##???? | | ???????????#### ### ##?# ## #???? | | ??????????## ## ##?# ??## #???? | | ??????????# ####### ##?# ????# ##??? | | ??????????# ###???## #??? ????## #??? | | ??????????## ###### ##??? ?????# #??? | | ???????????## #????? ?????## ##?? | | ????????????## #?????? ??????# #?? | | ?????????????## ## ##????????????# #?? | +----------------------------------------------------+ Best States ------------- Heat Dissipation 64 Energy Generation 24 Energy Capacity 650 Matter Stores 300 Matter Capacity 300 Sight Range 16 Robot Scan Range 14 Terrain Scan Range 16 Terrain Scan Density 10 Jamming Range 12 Additional Mass Support 9 Weapon Cycling 15 Evasion (%) 64 Targeting Accuracy 8 Salvage Targeting 2 Offensive Hacking 10 Item Schematics ----------------- None Robot Schematics ------------------ None Fabricated ------------ Nothing Alien Tech Used ----------------- None Achievements -------------- Power Corrupts Challenges ------------ None Game ------ Seed ProjectionLargeBroadsword Manual? 0 Play Time 01:32:51 Cumulative 7.2 hours Start 2024.03.31 @ 22:46:37 End 2024.04.01 @ 00:20:46 Sessions 1 Manual Loads 0 Difficulty Rogue Special Mode None Game No. 6 Rogue 6 Adventurer 0 Explorer 0 Win Type - Total 0 Types 0/0/0/0/0/0/0/0/0 Lore% 10 Gallery% 11 Achievement% 8 Wizard Run 0 Options --------- Layout 1 ASCII 0 Keyboard 0 Movement Mouse Keybinds 0 Fullscreen 1 Font 32/Terminus Map View 50x35 Zoom Use 0% Tactical HUD 0 Map Filters NONE Filters NONE Steam 1 RUN: a6998c63-85dd-4f3d-9b6d-99470c6e33c2